[Event "1000GM Spring IM-D 2024"]
[Site "New York"]
[Date "2024.03.29"]
[Round "3.8"]
[White "Khodzhamkuliev, Bahadur"]
[Black "Mou, Iris"]
[Result "1-0"]
[ECO "A09"]
[WhiteElo "2159"]
[BlackElo "2216"]
[Annotator "RC"]
[PlyCount "96"]
[EventDate "2024.03.26"]
[EventType "tourn"]
[EventCountry "USA"]
[SourceTitle "playchess.com"]
[Source "ChessBase"]
[SourceQuality "1"]
[TimeControl "5400+30"]

1. Nf3 {[%emt 0:00:04]} d5 {[%emt 0:00:20]} 2. c4 {[%emt 0:00:11]} d4 {[%emt 0:00:12]} 3. d3 {[%emt 0:00:30]} Nc6 {[%emt 0:00:27]} 4. g3 {[%emt 0:00:23]} e5 {[%emt 0:00:11]} 5. Bg2 {[%emt 0:00:07]} Bb4+ {[%emt 0:00:09]} 6. Bd2 {[%emt 0:00:11]} a5 {[%emt 0:00:09]} 7. O-O {[%emt 0:00:17]} Nf6 {[%emt 0:00:16]} 8. Bxb4 {[%emt 0:00:52]} axb4 {[%emt 0:00:10]} 9. Nbd2 {[%emt 0:00:05]} Qe7 {[%emt 0:00:38]} 10. a3 {[%emt 0:05:48]} bxa3 {[%emt 0:10:37]} 11. Qb3 {[%emt 0:01:15]} O-O {[%emt 0:00:59]} 12. Rxa3 {[%emt 0:01:30]} Rxa3 {[%emt 0:02:13]} 13. Qxa3 {[%emt 0:01:55]} Qxa3 {[%emt 0:01:11]} 14. bxa3 {[%emt 0:00:06]} Nd7 {[%emt 0:10:04]} 15. Ne1 {[%emt 0:14:59]} Nc5 {[%emt 0:07:27]} 16. Nc2 {[%emt 0:03:39]} Re8 {[%emt 0:23:38]} 17. Bxc6 {[%emt 0:02:14]} bxc6 {[%emt 0:00:08]} 18. f3 {[%emt 0:02:04]} Na4 {[%emt 0:05:31]} 19. Kf2 {[%emt 0:00:50]} Nc3 {[%emt 0:07:02]} 20. Ne4 {[%emt 0:01:27]} Bh3 {[%emt 0:00:45]} 21. Ra1 {[%emt 0:08:21]} Nxe4+ {[%emt 0:04:45]} 22. fxe4 {[%emt 0:00:21]} Rb8 {[%emt 0:02:57]} 23. a4 {[%emt 0:00:59]} Bc8 {[%emt 0:02:32]} 24. a5 {[%emt 0:01:09]} Ba6 {[%emt 0:00:31]} 25. Na3 {[%emt 0:10:59]} c5 {[%emt 0:05:13]} 26. Rb1 {[%emt 0:02:37]} Rb4 {[%emt 0:00:10]} 27. Ke1 {[%emt 0:02:18]} Kf8 {[%emt 0:03:21]} 28. Rxb4 {[%emt 0:00:39]} cxb4 {[%emt 0:00:19]} 29. Nb5 {[%emt 0:00:05]} c5 {[%emt 0:08:09]} 30. Nc7 {[%emt 0:00:33]} Bb7 {[%emt 0:01:57]} 31. a6 {[%emt 0:00:15]} Bc6 {[%emt 0:00:13]} 32. a7 {[%emt 0:00:23]} Ke7 {[%emt 0:00:07]} 33. a8=Q {[%emt 0:00:29]} Bxa8 {[%emt 0:00:04]} 34. Nxa8 {[%emt 0:00:04]} Kd6 {[%emt 0:00:32]} 35. Nb6 {[%emt 0:00:09]} h5 {[%emt 0:01:23]} 36. h4 {[%emt 0:00:59]} Kc6 {[%emt 0:01:42]} 37. Nd5 {[%emt 0:00:20]} Kb7 {[%emt 0:01:43]} 38. e3 {[%emt 0:00:46]} Ka6 {[%emt 0:00:33]} 39. exd4 {[%emt 0:00:15]} exd4 {[%emt 0:00:09]} 40. Kd2 {[%emt 0:00:13]} Ka5 {[%emt 0:00:50]} 41. Kc2 {[%emt 0:00:15]} Ka6 {[%emt 0:00:16]} 42. Kb3 {[%emt 0:01:54]} Ka5 {[%emt 0:00:06]} 43. Nf4 {[%emt 0:00:17]} g6 {[%emt 0:00:11]} 44. e5 {[%emt 0:01:02]} Kb6 {[%emt 0:00:30]} 45. e6 {[%emt 0:00:22]} fxe6 {[%emt 0:00:06]} 46. Nxg6 {[%emt 0:00:14]} Kc6 {[%emt 0:01:09]} 47. Nf4 {[%emt 0:00:23]} Kd6 {[%emt 0:01:30]} 48. Nxh5 {[%emt 0:00:09]} Ke5 {[%emt 0:00:32]} 1-0

[Event "1000GM Spring IM-D 2024"]
[Site "New York"]
[Date "2024.03.29"]
[Round "3.9"]
[White "Bonin, Jay"]
[Black "Ho, Carter"]
[Result "1-0"]
[ECO "E11"]
[WhiteElo "2154"]
[BlackElo "2108"]
[Annotator "RC"]
[PlyCount "71"]
[EventDate "2024.03.26"]
[EventType "tourn"]
[EventCountry "USA"]
[SourceTitle "playchess.com"]
[Source "ChessBase"]
[SourceQuality "1"]
[TimeControl "5400+30"]

1. d4 {[%emt 0:02:40]} Nf6 {[%emt 0:01:01]} 2. Nf3 {[%emt 0:00:08]} d5 {[%emt 0:00:12]} 3. c4 {[%emt 0:00:04]} e6 {[%emt 0:00:04]} 4. g3 {[%emt 0:00:11]} Bb4+ {[%emt 0:00:10]} 5. Bd2 {[%emt 0:00:06]} Be7 {[%emt 0:00:08]} 6. Bg2 {[%emt 0:00:11]} O-O {[%emt 0:00:10]} 7. Qc2 {[%emt 0:00:06]} c6 {[%emt 0:01:16]} 8. O-O {[%emt 0:00:08]} Nbd7 {[%emt 0:00:08]} 9. Bg5 {[%emt 0:00:13]} h6 {[%emt 0:00:07]} 10. Bxf6 {[%emt 0:00:03]} Nxf6 {[%emt 0:00:12]} 11. Nbd2 {[%emt 0:00:04]} b6 {[%emt 0:08:50]} 12. Rfd1 {[%emt 0:00:39]} Ba6 {[%emt 0:01:45]} 13. Rac1 {[%emt 0:00:49]} Rc8 {[%emt 0:02:15]} 14. Qb1 {[%emt 0:02:36]} c5 {[%emt 0:15:18]} 15. dxc5 {[%emt 0:08:00]} bxc5 {[%emt 0:06:14]} 16. e3 {[%emt 0:05:35]} Qb6 {[%emt 0:04:39]} 17. h3 {[%emt 0:10:14]} Rfd8 {[%emt 0:07:51]} 18. Ne5 {[%emt 0:03:44]} Qb8 {[%emt 0:10:01]} 19. Nd3 {[%emt 0:03:26]} Rd7 {[%emt 0:02:22]} 20. e4 {[%emt 0:03:25]} dxe4 {[%emt 0:05:27]} 21. Nxe4 {[%emt 0:00:16]} Nxe4 {[%emt 0:00:20]} 22. Bxe4 {[%emt 0:00:04]} Rd4 {[%emt 0:03:22]} 23. Re1 {[%emt 0:04:29]} Bxc4 {[%emt 0:04:28]} 24. Ne5 {[%emt 0:03:31]} Bb5 {[%emt 0:01:06]} 25. Bh7+ {[%emt 0:00:41]} Kf8 {[%emt 0:00:06]} 26. Nxf7 {[%emt 0:00:19]} Bf6 {[%emt 0:04:17]} 27. Nxh6 {[%emt 0:01:59]} Qd6 {[%emt 0:04:30]} 28. Ng4 {[%emt 0:03:24]} Bd3 {[%emt 0:05:24]} 29. Bxd3 {[%emt 0:00:11]} Rxd3 {[%emt 0:00:03]} 30. Kh2 {[%emt 0:01:14]} c4 {[%emt 0:03:34]} 31. Re4 {[%emt 0:05:26]} Qd5 {[%emt 0:01:38]} 32. Rce1 {[%emt 0:00:25]} Rc6 {[%emt 0:03:20]} 33. Qc2 {[%emt 0:08:03]} c3 {[%emt 0:02:58]} 34. bxc3 {[%emt 0:01:20]} Bxc3 {[%emt 0:01:16]} 35. Rxe6 {[%emt 0:01:46]} Rd2 {[%emt 0:00:45]} 36. Re8+ {[%emt 0:01:02]} 1-0

[Event "1000GM Spring IM-D 2024"]
[Site "New York"]
[Date "2024.03.29"]
[Round "4.1"]
[White "Lapshun, Yury"]
[Black "Cherukuri, Nitesh"]
[Result "1-0"]
[ECO "E94"]
[WhiteElo "2332"]
[BlackElo "2000"]
[Annotator "RC"]
[PlyCount "107"]
[EventDate "2024.03.26"]
[EventType "tourn"]
[EventCountry "USA"]
[SourceTitle "playchess.com"]
[Source "ChessBase"]
[SourceQuality "1"]
[TimeControl "5400+30"]

1. d4 {[%emt 0:44:21]} Nf6 {[%emt 0:00:33]} 2. c4 {[%emt 0:00:11]} g6 {[%emt 0:00:06]} 3. Nc3 {[%emt 0:00:04]} Bg7 {[%emt 0:00:05]} 4. e4 {[%emt 0:00:05]} d6 {[%emt 0:00:04]} 5. Be2 {[%emt 0:00:05]} O-O {[%emt 0:00:06]} 6. Nf3 {[%emt 0:00:04]} e5 {[%emt 0:00:05]} 7. O-O {[%emt 0:00:09]} exd4 {[%emt 0:00:07]} 8. Nxd4 {[%emt 0:00:05]} Re8 {[%emt 0:00:08]} 9. f3 {[%emt 0:00:30]} c6 {[%emt 0:00:05]} 10. Kh1 {[%emt 0:00:34]} d5 {[%emt 0:00:08]} 11. cxd5 {[%emt 0:04:49]} cxd5 {[%emt 0:00:17]} 12. Bg5 {[%emt 0:00:40]} Nc6 {[%emt 0:00:19]} 13. Nxc6 {[%emt 0:02:51]} bxc6 {[%emt 0:00:11]} 14. exd5 {[%emt 0:00:02]} cxd5 {[%emt 0:01:32]} 15. Bb5 {[%emt 0:00:07]} Rf8 {[%emt 0:02:43]} 16. Bc6 {[%emt 0:03:05]} Rb8 {[%emt 0:06:12]} 17. Nxd5 {[%emt 0:00:36]} Ba6 {[%emt 0:10:38]} 18. Re1 {[%emt 0:10:42]} Ng4 {[%emt 0:06:11]} 19. Ne7+ {[%emt 0:00:41]} Qxe7 {[%emt 0:01:08]} 20. Rxe7 {[%emt 0:09:54]} Nf2+ {[%emt 0:00:27]} 21. Kg1 {[%emt 0:00:03]} Nxd1 {[%emt 0:00:07]} 22. Rxd1 {[%emt 0:00:05]} Rfd8 {[%emt 0:13:11]} 23. Rxd8+ {[%emt 0:01:16]} Rxd8 {[%emt 0:00:09]} 24. Be3 {[%emt 0:00:54]} Bxb2 {[%emt 0:05:16]} 25. Rxa7 {[%emt 0:03:02]} Rd1+ {[%emt 0:00:50]} 26. Kf2 {[%emt 0:00:02]} Bc4 {[%emt 0:01:10]} 27. a4 {[%emt 0:00:37]} h5 {[%emt 0:02:50]} 28. Rd7 {[%emt 0:02:43]} Rf1+ {[%emt 0:09:32]} 29. Kg3 {[%emt 0:00:03]} Be5+ {[%emt 0:01:08]} 30. f4 {[%emt 0:00:41]} Bf6 {[%emt 0:00:51]} 31. Bd5 {[%emt 0:01:43]} Bxd5 {[%emt 0:06:53]} 32. Rxd5 {[%emt 0:00:03]} Ra1 {[%emt 0:01:33]} 33. a5 {[%emt 0:01:12]} Bc3 {[%emt 0:04:22]} 34. Bb6 {[%emt 0:01:29]} Ra3 {[%emt 0:00:57]} 35. Kf2 {[%emt 0:00:44]} Kg7 {[%emt 0:00:57]} 36. h3 {[%emt 0:01:32]} Kf6 {[%emt 0:01:13]} 37. Ke2 {[%emt 0:02:14]} Ke6 {[%emt 0:01:15]} 38. Rb5 {[%emt 0:00:04]} Kf6 {[%emt 0:01:09]} 39. g4 {[%emt 0:01:04]} hxg4 {[%emt 0:00:35]} 40. hxg4 {[%emt 0:00:02]} Ke6 {[%emt 0:00:37]} 41. Kd1 {[%emt 0:00:42]} Ra2 {[%emt 0:08:33]} 42. Kc1 {[%emt 0:01:16]} f5 {[%emt 0:05:21]} 43. Kb1 {[%emt 0:00:58]} Ra1+ {[%emt 0:08:04]} 44. Kc2 {[%emt 0:00:03]} Bg7 {[%emt 0:00:39]} 45. g5 {[%emt 0:01:44]} Bf8 {[%emt 0:00:31]} 46. Bd4 {[%emt 0:02:15]} Ra2+ {[%emt 0:01:07]} 47. Bb2 {[%emt 0:01:02]} Ra4 {[%emt 0:00:31]} 48. Kb3 {[%emt 0:03:53]} Rxf4 {[%emt 0:00:06]} 49. a6 {[%emt 0:00:04]} Rf3+ {[%emt 0:00:48]} 50. Ka4 {[%emt 0:00:07]} Rf4+ {[%emt 0:01:24]} 51. Ka5 {[%emt 0:00:06]} Be7 {[%emt 0:01:01]} 52. Re5+ {[%emt 0:02:06]} Kf7 {[%emt 0:00:47]} 53. Rxe7+ {[%emt 0:00:48]} Kxe7 {[%emt 0:00:02]} 54. a7 {[%emt 0:00:09]} 1-0

[Event "1000GM Spring IM-D 2024"]
[Site "New York"]
[Date "2024.03.29"]
[Round "4.2"]
[White "Fedorowicz, John"]
[Black "Espinosa, Pedro"]
[Result "1-0"]
[ECO "B70"]
[WhiteElo "2372"]
[BlackElo "2229"]
[Annotator "RC"]
[PlyCount "111"]
[EventDate "2024.03.26"]
[EventType "tourn"]
[EventCountry "USA"]
[SourceTitle "playchess.com"]
[Source "ChessBase"]
[SourceQuality "1"]
[TimeControl "5400+30"]

1. e4 {[%emt 0:00:41]} c5 {[%emt 0:00:05]} 2. Nf3 {[%emt 0:00:22]} d6 {[%emt 0:00:05]} 3. d4 {[%emt 0:00:40]} cxd4 {[%emt 0:00:07]} 4. Nxd4 {[%emt 0:00:08]} Nf6 {[%emt 0:00:10]} 5. Nc3 {[%emt 0:00:09]} Nc6 {[%emt 0:00:18]} 6. Be2 {[%emt 0:00:13]} g6 {[%emt 0:00:15]} 7. O-O {[%emt 0:02:09]} Bg7 {[%emt 0:01:19]} 8. Nb3 {[%emt 0:01:40]} O-O {[%emt 0:00:47]} 9. Bg5 {[%emt 0:00:42]} a6 {[%emt 0:01:00]} 10. f4 {[%emt 0:00:33]} b5 {[%emt 0:03:13]} 11. Bf3 {[%emt 0:00:08]} Bb7 {[%emt 0:01:48]} 12. Kh1 {[%emt 0:02:36]} b4 {[%emt 0:06:08]} 13. Nd5 {[%emt 0:00:09]} a5 {[%emt 0:04:40]} 14. Nxf6+ {[%emt 0:09:57]} exf6 {[%emt 0:03:14]} 15. Bh4 {[%emt 0:00:16]} a4 {[%emt 0:03:22]} 16. Nc1 {[%emt 0:01:45]} a3 {[%emt 0:08:09]} 17. bxa3 {[%emt 0:01:26]} Rxa3 {[%emt 0:02:58]} 18. Rb1 {[%emt 0:00:32]} Qc7 {[%emt 0:02:29]} 19. Bf2 {[%emt 0:01:29]} Re8 {[%emt 0:03:50]} 20. Re1 {[%emt 0:01:23]} Ba6 {[%emt 0:02:11]} 21. Qd5 {[%emt 0:10:24]} Rc3 {[%emt 0:08:28]} 22. Qd1 {[%emt 0:01:31]} Bc4 {[%emt 0:02:51]} 23. Nb3 {[%emt 0:04:17]} Ra8 {[%emt 0:06:03]} 24. Ra1 {[%emt 0:01:02]} Rd8 {[%emt 0:03:26]} 25. a3 {[%emt 0:06:19]} Be6 {[%emt 0:03:41]} 26. axb4 {[%emt 0:03:48]} Nxb4 {[%emt 0:02:07]} 27. Nd4 {[%emt 0:00:06]} Bd7 {[%emt 0:02:59]} 28. Rb1 {[%emt 0:00:47]} Na6 {[%emt 0:08:29]} 29. Ne2 {[%emt 0:02:07]} Rc6 {[%emt 0:03:13]} 30. c4 {[%emt 0:01:14]} Rc8 {[%emt 0:03:12]} 31. Nc3 {[%emt 0:00:28]} Qd8 {[%emt 0:05:01]} 32. Nb5 {[%emt 0:01:14]} Rb8 {[%emt 0:02:56]} 33. Ra1 {[%emt 0:02:26]} Bc8 {[%emt 0:06:02]} 34. Na7 {[%emt 0:02:42]} Rc7 {[%emt 0:01:34]} 35. e5 {[%emt 0:01:26]} fxe5 {[%emt 0:00:31]} 36. fxe5 {[%emt 0:00:07]} Nb4 {[%emt 0:00:54]} 37. exd6 {[%emt 0:04:19]} Rxc4 {[%emt 0:00:23]} 38. Nxc8 {[%emt 0:01:18]} Rbxc8 {[%emt 0:00:34]} 39. d7 {[%emt 0:00:08]} Rb8 {[%emt 0:00:35]} 40. Re8+ {[%emt 0:00:14]} Qxe8 {[%emt 0:00:11]} 41. dxe8=Q+ {[%emt 0:00:09]} Rxe8 {[%emt 0:00:02]} 42. Rb1 {[%emt 0:00:43]} Rec8 {[%emt 0:00:36]} 43. g3 {[%emt 0:01:13]} Na2 {[%emt 0:00:09]} 44. Qd7 {[%emt 0:00:40]} R4c7 {[%emt 0:00:36]} 45. Qd2 {[%emt 0:02:28]} Rc2 {[%emt 0:00:10]} 46. Rb8 {[%emt 0:01:01]} Bf8 {[%emt 0:01:14]} 47. Rxc8 {[%emt 0:00:15]} Rxd2 {[%emt 0:00:05]} 48. Bc5 {[%emt 0:00:03]} Kg7 {[%emt 0:00:29]} 49. Bxf8+ {[%emt 0:00:07]} Kf6 {[%emt 0:00:04]} 50. h4 {[%emt 0:01:29]} Rf2 {[%emt 0:00:12]} 51. Bg2 {[%emt 0:00:16]} h5 {[%emt 0:00:09]} 52. Kg1 {[%emt 0:00:46]} Rb2 {[%emt 0:00:14]} 53. Rc6+ {[%emt 0:00:31]} Kf5 {[%emt 0:00:06]} 54. Bg7 {[%emt 0:00:38]} Rb4 {[%emt 0:00:21]} 55. Rf6+ {[%emt 0:00:24]} Kg4 {[%emt 0:00:07]} 56. Kh2 {[%emt 0:00:17]} 1-0

[Event "1000GM Spring IM-D 2024"]
[Site "New York"]
[Date "2024.03.29"]
[Round "4.3"]
[White "Yoo, Eugene"]
[Black "Khodzhamkuliev, Bahadur"]
[Result "1-0"]
[ECO "E60"]
[WhiteElo "2205"]
[BlackElo "2159"]
[Annotator "RC"]
[PlyCount "71"]
[EventDate "2024.03.26"]
[EventType "tourn"]
[EventCountry "USA"]
[SourceTitle "playchess.com"]
[Source "ChessBase"]
[SourceQuality "1"]
[TimeControl "5400+30"]

1. d4 {[%emt 0:00:02]} d6 {[%emt 0:06:25]} 2. Nf3 {[%emt 0:00:15]} g6 {[%emt 0:00:04]} 3. g3 {[%emt 0:00:32]} Bg7 {[%emt 0:00:09]} 4. Bg2 {[%emt 0:00:48]} Nf6 {[%emt 0:00:20]} 5. O-O {[%emt 0:00:51]} O-O {[%emt 0:00:16]} 6. c4 {[%emt 0:00:05]} Nc6 {[%emt 0:00:07]} 7. h3 {[%emt 0:04:13]} Bf5 {[%emt 0:01:52]} 8. g4 {[%emt 0:03:30]} Be4 {[%emt 0:02:50]} 9. Nc3 {[%emt 0:07:23]} Bxf3 {[%emt 0:01:02]} 10. exf3 {[%emt 0:03:52]} e5 {[%emt 0:06:18]} 11. dxe5 {[%emt 0:02:07]} Nxe5 {[%emt 0:08:24]} 12. Qe2 {[%emt 0:03:05]} Re8 {[%emt 0:02:36]} 13. Be3 {[%emt 0:02:11]} g5 {[%emt 0:05:27]} 14. b3 {[%emt 0:10:38]} Ng6 {[%emt 0:03:13]} 15. Qd2 {[%emt 0:01:36]} h6 {[%emt 0:01:49]} 16. Rad1 {[%emt 0:01:12]} Re6 {[%emt 0:13:41]} 17. Ne2 {[%emt 0:02:46]} Nd7 {[%emt 0:02:48]} 18. f4 {[%emt 0:03:45]} gxf4 {[%emt 0:02:42]} 19. Nxf4 {[%emt 0:00:02]} Nxf4 {[%emt 0:00:22]} 20. Bxf4 {[%emt 0:00:01]} Nc5 {[%emt 0:06:06]} 21. Bd5 {[%emt 0:03:30]} Rg6 {[%emt 0:01:40]} 22. Bg3 {[%emt 0:06:09]} c6 {[%emt 0:03:36]} 23. Bg2 {[%emt 0:03:56]} Bf8 {[%emt 0:13:53]} 24. b4 {[%emt 0:04:18]} Ne6 {[%emt 0:01:16]} 25. Kh2 {[%emt 0:01:51]} Ng7 {[%emt 0:07:26]} 26. Be4 {[%emt 0:05:54]} Re6 {[%emt 0:00:59]} 27. Bb1 {[%emt 0:00:57]} Qb6 {[%emt 0:05:29]} 28. Qd3 {[%emt 0:04:50]} Rg6 {[%emt 0:00:24]} 29. Qc3 {[%emt 0:00:41]} Re6 {[%emt 0:00:53]} 30. h4 {[%emt 0:09:14]} Rae8 {[%emt 0:00:39]} 31. h5 {[%emt 0:00:12]} d5 {[%emt 0:00:47]} 32. cxd5 {[%emt 0:03:42]} cxd5 {[%emt 0:00:04]} 33. Rxd5 {[%emt 0:02:04]} Bxb4 {[%emt 0:01:00]} 34. Qd3 {[%emt 0:00:16]} f5 {[%emt 0:00:48]} 35. Rb5 {[%emt 0:03:39]} Qa6 {[%emt 0:01:19]} 36. Rxb4 {[%emt 0:00:22]} 1-0

[Event "1000GM Spring IM-D 2024"]
[Site "New York"]
[Date "2024.03.29"]
[Round "4.4"]
[White "Jakovljevic, Vlado"]
[Black "Safranek, William"]
[Result "1/2-1/2"]
[ECO "D32"]
[WhiteElo "2356"]
[BlackElo "1950"]
[Annotator "RC"]
[PlyCount "80"]
[EventDate "2024.03.26"]
[EventType "tourn"]
[EventCountry "USA"]
[SourceTitle "playchess.com"]
[Source "ChessBase"]
[SourceQuality "1"]
[TimeControl "5400+30"]

1. Nf3 {[%emt 0:00:04]} d5 {[%emt 0:07:38]} 2. d4 {[%emt 0:00:14]} e6 {[%emt 0:00:08]} 3. c4 {[%emt 0:00:10]} c5 {[%emt 0:00:04]} 4. cxd5 {[%emt 0:01:17]} exd5 {[%emt 0:00:06]} 5. Nc3 {[%emt 0:00:06]} Nf6 {[%emt 0:00:21]} 6. Bg5 {[%emt 0:00:24]} Be6 {[%emt 0:00:51]} 7. e4 {[%emt 0:00:31]} Be7 {[%emt 0:01:25]} 8. Bb5+ {[%emt 0:11:57]} Nc6 {[%emt 0:00:08]} 9. e5 {[%emt 0:19:32]} Nd7 {[%emt 0:05:53]} 10. Bxe7 {[%emt 0:01:30]} Qxe7 {[%emt 0:00:10]} 11. O-O {[%emt 0:00:21]} O-O {[%emt 0:00:53]} 12. Re1 {[%emt 0:07:36]} Rfd8 {[%emt 0:05:53]} 13. Bxc6 {[%emt 0:17:23]} bxc6 {[%emt 0:00:17]} 14. h3 {[%emt 0:05:40]} cxd4 {[%emt 0:15:30]} 15. Qxd4 {[%emt 0:01:02]} Rab8 {[%emt 0:10:27]} 16. b3 {[%emt 0:00:47]} Nf8 {[%emt 0:00:20]} 17. Na4 {[%emt 0:00:34]} Bf5 {[%emt 0:00:58]} 18. Nc5 {[%emt 0:01:48]} a5 {[%emt 0:03:45]} 19. Qc3 {[%emt 0:01:29]} Rb5 {[%emt 0:08:26]} 20. Rac1 {[%emt 0:01:30]} Nd7 {[%emt 0:00:09]} 21. Nxd7 {[%emt 0:05:09]} Bxd7 {[%emt 0:00:08]} 22. Nd4 {[%emt 0:00:59]} Rb4 {[%emt 0:00:07]} 23. Nxc6 {[%emt 0:01:53]} Bxc6 {[%emt 0:00:05]} 24. Qxc6 {[%emt 0:00:03]} d4 {[%emt 0:04:55]} 25. Qc5 {[%emt 0:07:37]} Qxc5 {[%emt 0:00:52]} 26. Rxc5 {[%emt 0:00:04]} a4 {[%emt 0:00:29]} 27. bxa4 {[%emt 0:07:01]} Rxa4 {[%emt 0:00:22]} 28. Rd1 {[%emt 0:01:59]} h5 {[%emt 0:00:44]} 29. Rd2 {[%emt 0:00:21]} g6 {[%emt 0:00:30]} 30. Kf1 {[%emt 0:01:35]} Kf8 {[%emt 0:02:21]} 31. Ke2 {[%emt 0:00:22]} Ra3 {[%emt 0:01:19]} 32. Rc4 {[%emt 0:01:14]} Ke7 {[%emt 0:00:12]} 33. Rcxd4 {[%emt 0:00:17]} Rxd4 {[%emt 0:00:05]} 34. Rxd4 {[%emt 0:00:04]} Rxa2+ {[%emt 0:00:06]} 35. Rd2 {[%emt 0:01:17]} Ra4 {[%emt 0:01:44]} 36. Kf3 {[%emt 0:01:19]} Ke6 {[%emt 0:00:09]} 37. Re2 {[%emt 0:00:16]} Kf5 {[%emt 0:01:04]} 38. g3 {[%emt 0:01:26]} Ra3+ {[%emt 0:00:09]} 39. Kg2 {[%emt 0:00:18]} Ra5 {[%emt 0:01:55]} 40. Rc2 {[%emt 0:02:06]} Kxe5 {[%emt 0:29:52]} 1/2-1/2

[Event "1000GM Spring IM-D 2024"]
[Site "New York"]
[Date "2024.03.29"]
[Round "4.5"]
[White "Shangin, Lev"]
[Black "Bonin, Jay"]
[Result "1/2-1/2"]
[ECO "D30"]
[WhiteElo "1994"]
[BlackElo "2154"]
[Annotator "RC"]
[PlyCount "50"]
[EventDate "2024.03.26"]
[EventType "tourn"]
[EventCountry "USA"]
[SourceTitle "playchess.com"]
[Source "ChessBase"]
[SourceQuality "1"]
[TimeControl "5400+30"]

1. d4 {[%emt 0:00:03]} d5 {[%emt 0:07:53]} 2. c4 {[%emt 0:00:43]} e6 {[%emt 0:00:27]} 3. Nf3 {[%emt 0:00:46]} c6 {[%emt 0:01:18]} 4. Bg5 {[%emt 0:00:46]} Be7 {[%emt 0:00:47]} 5. Bxe7 {[%emt 0:01:13]} Qxe7 {[%emt 0:00:08]} 6. e3 {[%emt 0:00:47]} Nd7 {[%emt 0:01:28]} 7. Nc3 {[%emt 0:01:19]} Ngf6 {[%emt 0:00:11]} 8. Rc1 {[%emt 0:02:10]} O-O {[%emt 0:01:21]} 9. Be2 {[%emt 0:02:25]} dxc4 {[%emt 0:04:52]} 10. Bxc4 {[%emt 0:00:07]} e5 {[%emt 0:00:21]} 11. O-O {[%emt 0:03:12]} e4 {[%emt 0:00:26]} 12. Nd2 {[%emt 0:00:30]} Nb6 {[%emt 0:01:01]} 13. Qc2 {[%emt 0:04:18]} Bf5 {[%emt 0:06:37]} 14. Be2 {[%emt 0:08:32]} Rfe8 {[%emt 0:01:57]} 15. Nc4 {[%emt 0:04:16]} Nxc4 {[%emt 0:03:00]} 16. Bxc4 {[%emt 0:01:45]} g6 {[%emt 0:03:56]} 17. Ne2 {[%emt 0:04:36]} Be6 {[%emt 0:06:42]} 18. Nf4 {[%emt 0:04:02]} Bxc4 {[%emt 0:00:25]} 19. Qxc4 {[%emt 0:00:01]} Rad8 {[%emt 0:03:47]} 20. Qc5 {[%emt 0:04:59]} a6 {[%emt 0:01:52]} 21. Qxe7 {[%emt 0:04:01]} Rxe7 {[%emt 0:00:12]} 22. Rc5 {[%emt 0:00:08]} Red7 {[%emt 0:05:18]} 23. Re5 {[%emt 0:03:29]} Re8 {[%emt 0:00:20]} 24. Rc5 {[%emt 0:02:00]} Red8 {[%emt 0:00:32]} 25. Re5 {[%emt 0:02:26]} Re8 {[%emt 0:02:26]} 1/2-1/2

[Event "1000GM Spring IM-D 2024"]
[Site "New York"]
[Date "2024.03.29"]
[Round "4.6"]
[White "Mou, Iris"]
[Black "Polyik, Peter"]
[Result "0-1"]
[ECO "B75"]
[WhiteElo "2216"]
[BlackElo "2295"]
[Annotator "RC"]
[PlyCount "60"]
[EventDate "2024.03.26"]
[EventType "tourn"]
[EventCountry "USA"]
[SourceTitle "playchess.com"]
[Source "ChessBase"]
[SourceQuality "1"]
[TimeControl "5400+30"]

1. e4 {[%emt 0:00:01]} c5 {[%emt 0:06:41]} 2. Nf3 {[%emt 0:00:12]} d6 {[%emt 0:00:06]} 3. d4 {[%emt 0:00:13]} cxd4 {[%emt 0:00:09]} 4. Nxd4 {[%emt 0:00:07]} Nf6 {[%emt 0:00:05]} 5. Nc3 {[%emt 0:00:13]} g6 {[%emt 0:00:25]} 6. Be3 {[%emt 0:00:13]} Bg7 {[%emt 0:00:18]} 7. f3 {[%emt 0:00:08]} a6 {[%emt 0:00:46]} 8. Qd2 {[%emt 0:01:17]} h5 {[%emt 0:00:14]} 9. Be2 {[%emt 0:04:29]} Nbd7 {[%emt 0:01:15]} 10. h3 {[%emt 0:05:57]} h4 {[%emt 0:10:52]} 11. Bg5 {[%emt 0:07:59]} Nc5 {[%emt 0:14:01]} 12. O-O-O {[%emt 0:11:30]} Bd7 {[%emt 0:10:53]} 13. Kb1 {[%emt 0:06:02]} Rc8 {[%emt 0:13:12]} 14. Qe3 {[%emt 0:12:59]} Qa5 {[%emt 0:12:42]} 15. f4 {[%emt 0:07:38]} Na4 {[%emt 0:06:10]} 16. Nd5 {[%emt 0:15:53]} Nxd5 {[%emt 0:02:14]} 17. exd5 {[%emt 0:00:10]} O-O {[%emt 0:00:35]} 18. Qb3 {[%emt 0:06:46]} Rc3 {[%emt 0:11:10]} 19. Qxb7 {[%emt 0:06:18]} Nc5 {[%emt 0:00:33]} 20. b4 {[%emt 0:02:56]} Qa4 {[%emt 0:04:50]} 21. bxc5 {[%emt 0:00:16]} Bf5 {[%emt 0:01:46]} 22. Qb2 {[%emt 0:08:12]} Rxc2 {[%emt 0:01:33]} 23. Qxc2 {[%emt 0:00:26]} Bxc2+ {[%emt 0:00:36]} 24. Nxc2 {[%emt 0:00:05]} Rb8+ {[%emt 0:00:05]} 25. Kc1 {[%emt 0:00:05]} Qxa2 {[%emt 0:01:14]} 26. Kd2 {[%emt 0:01:25]} Qa5+ {[%emt 0:00:14]} 27. Ke3 {[%emt 0:01:03]} Qxc5+ {[%emt 0:00:12]} 28. Kf3 {[%emt 0:00:52]} Qxc2 {[%emt 0:00:59]} 29. Bxh4 {[%emt 0:00:56]} Rb3+ {[%emt 0:00:23]} 30. Kf2 {[%emt 0:00:07]} Rb2 {[%emt 0:00:18]} 0-1